fUST/lending_fUST_20251206
["ID","MTS","AMOUNT","RATE_DAILY","PERIOD"]
[396436340,1764969045455,-591.78,0.00016237,2]
[396436341,1764969045464,-591.78,0.00016237,2]
[396436343,1764969045473,-591.78,0.00016237,2]
[396436345,1764969045482,-591.78,0.00016237,2]
[396436347,1764969045491,-591.78,0.00016237,2]
[396436349,1764969045500,-591.78,0.00016237,2]
[396436351,1764969045510,-591.78,0.00016237,2]
[396436353,1764969045519,-591.78,0.00016237,2]
[396436355,1764969045528,-591.78,0.00016237,2]
[396436357,1764969045541,-591.78,0.00016237,2]
[396436359,1764969045550,-500.0,0.00016237,2]
[396436361,1764969045559,-500.0,0.00016237,2]
[396436363,1764969045568,-500.0,0.00016237,2]
[396436365,1764969045580,-500.0,0.00016237,2]
[396436367,1764969045589,-500.0,0.00016237,2]
[396436369,1764969045598,-500.0,0.00016237,2]
[396436371,1764969045607,-3591.22,0.00016237,2]
[396436373,1764969045617,-3591.22,0.00016237,2]
[396436375,1764969045627,-3591.22,0.00016237,2]
[396436377,1764969045636,-3591.22,0.00016237,2]
[396436379,1764969045644,-3591.22,0.00016237,2]
[396436381,1764969045653,-3591.22,0.00016237,2]
[396436383,1764969045662,-3591.22,0.00016237,2]
[396436385,1764969045671,-3591.22,0.00016237,2]
[396436387,1764969045680,-3591.22,0.00016237,2]
[396436389,1764969045690,-3591.22,0.00016237,2]
[396436391,1764969045699,-3591.22,0.00016237,2]
[396436393,1764969045707,-3591.22,0.00016237,2]
[396436395,1764969045716,-3591.22,0.00016237,2]
[396436397,1764969045725,-3591.22,0.00016237,2]
[396436399,1764969045735,-3591.22,0.00016237,2]
[396436401,1764969045746,-151.0,0.00016274,2]
[396436403,1764969045755,-151.0,0.00016274,2]
[396436405,1764969045765,-151.19917669,0.00016274,2]
[396436407,1764969045775,-500.0,0.00016274,2]
[396436409,1764969045784,-151.0,0.00016274,2]
[396436411,1764969045794,-500.0,0.00016274,2]
[396436413,1764969045803,-500.0,0.00016274,2]
[396436416,1764969045813,-151.0,0.00016274,2]
[396436417,1764969045822,-500.0,0.00016274,2]
[396436420,1764969045832,-151.0,0.00016274,2]
[396436421,1764969045841,-151.0,0.00016274,2]
[396436423,1764969045850,-151.0,0.00016274,2]
[396436425,1764969045859,-546.0,0.00016287,2]
[396436427,1764969045869,-823.0,0.00016293,2]
[396436429,1764969045877,-151.0,0.000163,2]
[396436431,1764969045887,-591.78,0.00016337,2]
[396436433,1764969045896,-3591.22,0.00016337,2]
[396436436,1764969045906,-157.04764861,0.00016338,2]
[396436437,1764969045915,-333.0,0.00016388,2]
[396436439,1764969045924,-1456.2810843,0.00016403,2]
[396436442,1764969045933,-3015.0,0.00016408,2]
[396436444,1764969045942,-202.20087972,0.00016411,2]
[396436446,1764969045952,-199.67796851,0.00016411,2]
[396436447,1764969045961,-151.45710674,0.00016411,2]
[396436449,1764969045970,-151.0,0.00016411,2]
[396436451,1764969045979,-500.0,0.00016411,2]
[396436453,1764969045988,-500.0,0.00016411,2]
[396436455,1764969045998,-151.0,0.00016411,2]
[396436458,1764969046007,-564.28741955,0.00016411,2]
[396436459,1764969046017,-151.0,0.00016411,2]
[396436461,1764969046026,-151.0,0.00016411,2]
[396436463,1764969046035,-151.0,0.00016411,2]
[396436465,1764969046045,-560.35775812,0.00016424,2]
[396436467,1764969046054,-157.04764859,0.00016429,2]
[396436469,1764969046063,-591.78,0.00016437,2]
[396436471,1764969046072,-591.78,0.00016437,2]
[396436473,1764969046081,-591.78,0.00016437,2]
[396436475,1764969046090,-591.78,0.00016437,2]
[396436477,1764969046099,-591.78,0.00016437,2]
[396436479,1764969046108,-591.78,0.00016437,2]
[396436481,1764969046117,-591.93351752,0.00016437,2]
[396436483,1764969046126,-3591.22,0.00016437,2]
[396436485,1764969046135,-3591.22,0.00016437,2]
[396436487,1764969046144,-3591.22,0.00016437,2]
[396436489,1764969046153,-3591.22,0.00016437,2]
[396436491,1764969046162,-3591.22,0.00016437,2]
[396436493,1764969046171,-3591.22,0.00016437,2]
[396436495,1764969046181,-3591.22,0.00016437,2]
[396436497,1764969046190,-3591.30955143,0.00016437,2]
[396436499,1764969046200,-500.0,0.00016438,2]
[396436501,1764969046211,-500.0,0.00016438,2]
[396436503,1764969046220,-523.25,0.00016438,2]
[396436505,1764969046229,-500.0,0.00016438,2]
[396436507,1764969046238,-500.0,0.00016438,2]
[396436509,1764969046247,-500.0,0.00016438,2]
[396436511,1764969046257,-500.0,0.00016438,2]
[396436513,1764969046265,-730.22,0.00016438,2]
[396436515,1764969046275,-500.0,0.00016438,2]
[396436517,1764969046284,-500.0,0.00016438,2]
[396436519,1764969046293,-500.0,0.00016438,2]
[396436521,1764969046302,-500.0,0.00016438,2]
[396436523,1764969046311,-500.0,0.00016438,2]
[396436525,1764969046320,-500.0,0.00016438,2]
[396436527,1764969046329,-500.0,0.00016438,2]
[396436529,1764969046338,-500.0,0.00016438,2]
[396436531,1764969046347,-500.0,0.00016438,2]
[396436533,1764969046356,-500.0,0.00016438,2]
[396436535,1764969046365,-500.0,0.00016438,2]
[396436537,1764969046374,-500.0,0.00016438,2]
[396436539,1764969046383,-500.0,0.00016438,2]
[396436541,1764969046392,-500.0,0.00016438,2]
[396436543,1764969046401,-586.46,0.00016438,2]
[396436545,1764969046409,-500.0,0.00016438,2]
[396436547,1764969046418,-500.0,0.00016438,2]
[396436549,1764969046427,-500.0,0.00016438,2]
[396436551,1764969046436,-635.37487937,0.00016438,2]
[396436553,1764969046446,-500.0,0.00016438,2]
[396436555,1764969046455,-500.0,0.00016438,2]
[396436557,1764969046464,-500.0,0.00016438,2]
[396436559,1764969046473,-500.0,0.00016438,2]
[396436561,1764969046483,-500.0,0.00016438,2]
[396436563,1764969046492,-500.0,0.00016438,2]
[396436565,1764969046501,-500.0,0.00016438,2]
[396436567,1764969046511,-500.0,0.00016438,2]
[396436569,1764969046519,-500.0,0.00016438,2]
[396436571,1764969046529,-500.0,0.00016438,2]
[396436573,1764969046542,-500.0,0.00016438,2]
[396436575,1764969046551,-500.0,0.00016438,2]
[396436577,1764969046560,-500.0,0.00016438,2]
[396436579,1764969046569,-500.0,0.00016438,2]
[396436581,1764969046578,-500.0,0.00016438,2]
[396436583,1764969046587,-500.0,0.00016438,2]
[396436585,1764969046597,-611.78,0.00016438,2]
[396436587,1764969046606,-500.0,0.00016438,2]
[396436589,1764969046617,-500.0,0.00016438,2]
[396436590,1764969046625,-500.0,0.00016438,2]
[396436593,1764969046634,-500.0,0.00016438,2]
[396436595,1764969046644,-511.15,0.00016438,2]
[396436596,1764969046653,-500.0,0.00016438,2]
[396436598,1764969046662,-642.39,0.00016438,2]
[396436601,1764969046671,-500.0,0.00016438,2]
[396436602,1764969046680,-500.0,0.00016438,2]
[396436604,1764969046688,-500.0,0.00016438,2]
[396436606,1764969046698,-500.0,0.00016438,2]
[396436608,1764969046707,-500.0,0.00016438,2]
[396436610,1764969046716,-834.76,0.00016438,2]
[396436613,1764969046725,-694.79,0.00016438,2]
[396436615,1764969046735,-500.0,0.00016438,2]
[396436617,1764969046745,-507.97,0.00016438,2]
[396436619,1764969046754,-500.0,0.00016438,2]
[396436621,1764969046764,-500.0,0.00016438,2]
[396436623,1764969046773,-500.0,0.00016438,2]
[396436625,1764969046783,-500.0,0.00016438,2]
[396436627,1764969046792,-500.0,0.00016438,2]
[396436629,1764969046802,-500.0,0.00016438,2]
[396436631,1764969046811,-505.96,0.00016438,2]
[396436633,1764969046820,-500.0,0.00016438,2]
[396436636,1764969046830,-210.60733708,0.00016438,2]
[396436638,1764969046840,-500.0,0.00016438,2]
[396436640,1764969046851,-857.91,0.00016438,2]
[396436642,1764969046860,-500.0,0.00016438,2]
[396436644,1764969046869,-500.0,0.00016438,2]
[396436646,1764969046878,-500.0,0.00016438,2]
[396436647,1764969046887,-500.0,0.00016438,2]
[396436650,1764969046897,-500.0,0.00016438,2]
[396436652,1764969046907,-500.0,0.00016438,2]
[396436653,1764969046916,-500.0,0.00016438,2]
[396436655,1764969046925,-500.0,0.00016438,2]
[396436657,1764969046934,-500.0,0.00016438,2]
[396436660,1764969046943,-500.0,0.00016438,2]
[396436662,1764969046952,-500.0,0.00016438,2]
[396436664,1764969046961,-500.0,0.00016438,2]
[396436666,1764969046970,-500.0,0.00016438,2]
[396436667,1764969046980,-658.22,0.00016438,2]
[396436669,1764969046989,-500.0,0.00016438,2]
[396436671,1764969046998,-500.0,0.00016438,2]
[396436673,1764969047007,-500.0,0.00016438,2]
[396436675,1764969047016,-500.0,0.00016438,2]
[396436678,1764969047026,-500.0,0.00016438,2]
[396436680,1764969047035,-500.0,0.00016438,2]
[396436682,1764969047045,-500.0,0.00016438,2]
[396436684,1764969047054,-500.0,0.00016438,2]
[396436686,1764969047063,-500.0,0.00016438,2]
[396436688,1764969047072,-500.0,0.00016438,2]
[396436690,1764969047081,-500.0,0.00016438,2]
[396436691,1764969047090,-500.0,0.00016438,2]
[396436693,1764969047099,-500.0,0.00016438,2]
[396436696,1764969047108,-632.33,0.00016438,2]
[396436697,1764969047118,-555.4,0.00016438,2]
[396436700,1764969047127,-2224.7,0.00016438,2]
[396436701,1764969047136,-500.0,0.00016438,2]
[396436703,1764969047145,-679.28,0.00016438,2]
[396436705,1764969047154,-581.92585711,0.00016438,2]
[396436707,1764969047164,-500.0,0.00016438,2]
[396436709,1764969047173,-500.0,0.00016438,2]
[396436711,1764969047182,-500.0,0.00016438,2]
[396436713,1764969047191,-778.69,0.00016438,2]
[396436715,1764969047200,-500.0,0.00016438,2]
[396436717,1764969047209,-500.0,0.00016438,2]
[396436719,1764969047218,-500.0,0.00016438,2]
[396436721,1764969047227,-500.0,0.00016438,2]
[396436723,1764969047236,-500.0,0.00016438,2]
[396436725,1764969047245,-500.0,0.00016438,2]
[396436727,1764969047254,-573.93,0.00016438,2]
[396436729,1764969047263,-500.0,0.00016438,2]
[396436731,1764969047272,-500.0,0.00016438,2]
[396436733,1764969047281,-500.0,0.00016438,2]
[396436735,1764969047290,-500.0,0.00016438,2]
[396436737,1764969047299,-500.0,0.00016438,2]
[396436739,1764969047308,-191.95470518,0.00016438,2]
[396436741,1764969047317,-500.0,0.00016438,2]
[396436744,1764969047326,-500.0,0.00016438,2]
[396436745,1764969047336,-500.0,0.00016438,2]
[396436747,1764969047345,-500.0,0.00016438,2]
[396436750,1764969047355,-500.0,0.00016438,2]
[396436751,1764969047363,-500.0,0.00016438,2]
[396436754,1764969047372,-500.0,0.00016438,2]
[396436756,1764969047381,-697.44,0.00016438,2]
[396436757,1764969047390,-500.0,0.00016438,2]
[396436759,1764969047399,-1398.64,0.00016438,2]
[396436761,1764969047409,-500.0,0.00016438,2]
[396436763,1764969047418,-500.0,0.00016438,2]
[396436765,1764969047427,-500.0,0.00016438,2]
[396436767,1764969047436,-500.0,0.00016438,2]
[396436769,1764969047446,-500.0,0.00016438,2]
[396436771,1764969047455,-500.0,0.00016438,2]
[396436773,1764969047465,-1117.41,0.00016438,2]
[396436775,1764969047474,-500.0,0.00016438,2]
[396436777,1764969047483,-500.0,0.00016438,2]
[396436779,1764969047492,-548.9,0.00016438,2]
[396436781,1764969047501,-500.0,0.00016438,2]
[396436783,1764969047510,-500.0,0.00016438,2]
[396436785,1764969047519,-500.0,0.00016438,2]
[396436787,1764969047528,-500.0,0.00016438,2]
[396436789,1764969047541,-500.0,0.00016438,2]
[396436791,1764969047550,-500.0,0.00016438,2]
[396436793,1764969047560,-500.0,0.00016438,2]
[396436795,1764969047569,-500.0,0.00016438,2]
[396436797,1764969047580,-500.0,0.00016438,2]
[396436799,1764969047589,-500.0,0.00016438,2]
[396436801,1764969047598,-500.0,0.00016438,2]
[396436803,1764969047608,-606.18,0.00016438,2]
[396436805,1764969047618,-500.0,0.00016438,2]
[396436807,1764969047628,-500.0,0.00016438,2]
[396436809,1764969047636,-500.0,0.00016438,2]
[396436811,1764969047646,-500.0,0.00016438,2]
[396436813,1764969047655,-500.0,0.00016438,2]
[396436815,1764969047665,-500.0,0.00016438,2]
[396436817,1764969047674,-500.0,0.00016438,2]
[396436819,1764969047683,-500.0,0.00016438,2]
[396436821,1764969047692,-500.0,0.00016438,2]
[396436823,1764969047701,-500.0,0.00016438,2]
[396436825,1764969047712,-1037.82,0.00016438,2]
[396436827,1764969047721,-500.0,0.00016438,2]
[396436829,1764969047731,-500.0,0.00016438,2]
[396436831,1764969047740,-500.0,0.00016438,2]
[396436833,1764969047749,-500.0,0.00016438,2]
[396436847,1764969047868,-270.53144208,0.00016438,2]
[396436849,1764969047877,-500.0,0.00016438,2]
[396436851,1764969047887,-500.0,0.00016438,2]
[396436853,1764969047896,-500.0,0.00016438,2]
[396436855,1764969047906,-500.0,0.00016438,2]
[396436857,1764969047915,-525.38934141,0.00016438,2]
[396436859,1764969047924,-691.71,0.00016438,2]
[396436861,1764969047933,-621.68,0.00016438,2]
[396436863,1764969047942,-1282.0,0.00016438,2]
[396436865,1764969047951,-500.0,0.00016438,2]
[396436867,1764969047961,-945.07,0.00016438,2]
[396436869,1764969047970,-500.0,0.00016438,2]
[396436871,1764969047980,-500.0,0.00016438,2]
[396436874,1764969047990,-500.0,0.00016438,2]
[396436876,1764969047999,-817.16,0.00016438,2]
[396436878,1764969048008,-500.0,0.00016438,2]
[396436880,1764969048017,-500.0,0.00016438,2]
[396436882,1764969048027,-701.49,0.00016438,2]
[396436884,1764969048036,-596.1,0.00016438,2]
[396436886,1764969048046,-574.49470443,0.00016438,2]
[396436888,1764969048055,-500.0,0.00016438,2]
[396436890,1764969048064,-500.0,0.00016438,2]
[396436892,1764969048074,-785.27,0.00016438,2]
[396436894,1764969048083,-500.0,0.00016438,2]
[396436896,1764969048092,-573.53408667,0.00016438,2]
[396436898,1764969048100,-1367.07,0.00016438,2]
[396436900,1764969048110,-500.0,0.00016438,2]
[396436902,1764969048119,-500.0,0.00016438,2]
[396436904,1764969048128,-586.08,0.00016438,2]
[396436906,1764969048137,-500.0,0.00016438,2]
[396436908,1764969048146,-500.0,0.00016438,2]
[396436910,1764969048155,-500.0,0.00016438,2]
[396436912,1764969048164,-500.0,0.00016438,2]
[396436914,1764969048173,-500.0,0.00016438,2]
[396436916,1764969048183,-500.0,0.00016438,2]
[396436918,1764969048192,-500.0,0.00016438,2]
[396436920,1764969048202,-500.0,0.00016438,2]
[396436922,1764969048211,-500.0,0.00016438,2]
[396436924,1764969048221,-500.0,0.00016438,2]
[396436926,1764969048229,-500.0,0.00016438,2]
[396436928,1764969048239,-512.86,0.00016438,2]
[396436930,1764969048248,-500.0,0.00016438,2]
[396436932,1764969048257,-500.0,0.00016438,2]
[396436934,1764969048266,-500.0,0.00016438,2]
[396436936,1764969048275,-500.0,0.00016438,2]
[396436938,1764969048284,-500.0,0.00016438,2]
[396436940,1764969048294,-1285.66,0.00016438,2]
[396436942,1764969048303,-608.49,0.00016438,2]
[396436944,1764969048312,-500.0,0.00016438,2]
[396436946,1764969048322,-500.0,0.00016438,2]
[396436948,1764969048331,-500.0,0.00016438,2]
[396436950,1764969048340,-500.0,0.00016438,2]
[396436952,1764969048349,-500.0,0.00016438,2]
[396436954,1764969048358,-500.0,0.00016438,2]
[396436956,1764969048368,-868.62,0.00016438,2]
[396436958,1764969048376,-500.0,0.00016438,2]
[396436960,1764969048385,-500.0,0.00016438,2]
[396436962,1764969048394,-500.0,0.00016438,2]
[396436964,1764969048403,-506.58,0.00016438,2]
[396436966,1764969048412,-500.0,0.00016438,2]
[396436968,1764969048421,-500.0,0.00016438,2]
[396436970,1764969048430,-778.18,0.00016438,2]
[396436972,1764969048439,-1136.23,0.00016438,2]
[396436974,1764969048448,-500.0,0.00016438,2]
[396436976,1764969048458,-500.0,0.00016438,2]
[396436978,1764969048467,-530.29,0.00016438,2]
[396436980,1764969048477,-500.0,0.00016438,2]
[396436982,1764969048487,-553.7,0.00016438,2]
[396436984,1764969048496,-500.0,0.00016438,2]
[396436987,1764969048506,-500.0,0.00016438,2]
[396436989,1764969048516,-901.32,0.00016438,2]
[396436991,1764969048526,-500.0,0.00016438,2]
[396436993,1764969048539,-500.0,0.00016438,2]
[396436994,1764969048548,-500.0,0.00016438,2]
[396436997,1764969048557,-587.62896235,0.00016438,2]
[396436999,1764969048567,-659.27,0.00016438,2]
[396437001,1764969048579,-500.0,0.00016438,2]
[396437003,1764969048589,-500.0,0.00016438,2]
[396437005,1764969048599,-500.0,0.00016438,2]
[396437007,1764969048608,-500.0,0.00016438,2]
[396437009,1764969048618,-178.80775992,0.00016438,2]
[396437011,1764969048628,-500.0,0.00016438,2]
[396437013,1764969048637,-500.0,0.00016438,2]
[396437015,1764969048646,-500.0,0.00016438,2]
[396437017,1764969048656,-1000.58692723,0.00016438,2]
[396437019,1764969048665,-500.0,0.00016438,2]
[396437021,1764969048674,-500.0,0.00016438,2]
[396437023,1764969048683,-500.0,0.00016438,2]
[396437025,1764969048693,-590.59,0.00016438,2]
[396437027,1764969048702,-500.0,0.00016438,2]
[396437029,1764969048711,-561.71,0.00016438,2]
[396437030,1764969048721,-500.0,0.00016438,2]
[396437032,1764969048730,-500.0,0.00016438,2]
[396437034,1764969048740,-500.0,0.00016438,2]
[396437037,1764969048749,-500.0,0.00016438,2]
[396437039,1764969048759,-709.98,0.00016438,2]
[396437041,1764969048769,-500.0,0.00016438,2]
[396437043,1764969048779,-500.0,0.00016438,2]
[396437045,1764969048789,-500.0,0.00016438,2]
[396437047,1764969048798,-340.29,0.00016438,2]
[396437049,1764969048808,-500.0,0.00016438,2]
[396437050,1764969048817,-500.0,0.00016438,2]
[396437053,1764969048827,-500.0,0.00016438,2]
[396437054,1764969048836,-500.0,0.00016438,2]
[396437057,1764969048845,-500.0,0.00016438,2]
[396437059,1764969048855,-500.0,0.00016438,2]
[396437061,1764969048864,-500.0,0.00016438,2]
[396437063,1764969048874,-500.0,0.00016438,2]
[396437065,1764969048883,-1870.97,0.00016438,2]
[396437067,1764969048893,-547.05,0.00016438,2]
[396437068,1764969048903,-578.06,0.00016438,2]
[396437069,1764969048913,-500.0,0.00016438,2]
[396437070,1764969048923,-514.66,0.00016438,2]
[396437071,1764969048933,-632.04,0.00016438,2]
[396437072,1764969048942,-500.0,0.00016438,2]
[396437073,1764969048953,-500.0,0.00016438,2]
[396437074,1764969048962,-500.0,0.00016438,2]
[396437075,1764969048972,-776.87,0.00016438,2]
[396437076,1764969048981,-500.0,0.00016438,2]
[396437077,1764969048990,-3125.0,0.00016438,2]
[396437078,1764969049000,-500.0,0.00016438,2]
[396437079,1764969049009,-500.0,0.00016438,2]
[396437080,1764969049018,-569.64,0.00016438,2]
[396437081,1764969049029,-591.81,0.00016438,2]
[396437083,1764969049040,-500.0,0.00016438,2]
[396437086,1764969049051,-910.24,0.00016438,2]
[396437088,1764969049061,-198.45307209,0.00016438,2]
[396437089,1764969049072,-500.0,0.00016438,2]
[396437092,1764969049082,-500.0,0.00016438,2]
[396437094,1764969049093,-548.47,0.00016438,2]
[396437095,1764969049102,-985.32,0.00016438,2]
[396437097,1764969049113,-500.0,0.00016438,2]
[396437100,1764969049123,-500.0,0.00016438,2]
[396437102,1764969049133,-500.0,0.00016438,2]
[396437104,1764969049144,-1531.39,0.00016438,2]
[396437106,1764969049153,-500.0,0.00016438,2]
[396437108,1764969049162,-654.63,0.00016438,2]
[396437109,1764969049172,-427.84818045,0.00016438,2]
[396437111,1764969049181,-2501.96,0.00016438,2]
[396437113,1764969049192,-736.99,0.00016438,2]
[396437115,1764969049202,-500.0,0.00016438,2]
[396437117,1764969049212,-500.0,0.00016438,2]
[396437120,1764969049222,-500.0,0.00016438,2]
[396437121,1764969049231,-500.0,0.00016438,2]
[396437124,1764969049240,-602.4,0.00016438,2]
[396437125,1764969049250,-965.71,0.00016438,2]
[396437128,1764969049260,-2049.94,0.00016438,2]
[396437130,1764969049271,-500.0,0.00016438,2]
[396437132,1764969049281,-620.8,0.00016438,2]
[396437134,1764969049291,-1329.75,0.00016438,2]
[396437135,1764969049301,-440.45139401,0.00016438,2]
[396437137,1764969049311,-777.13,0.00016438,2]
[396437139,1764969049321,-500.0,0.00016438,2]
[396437141,1764969049330,-500.0,0.00016438,2]
[396437143,1764969049340,-500.0,0.00016438,2]
[396437145,1764969049351,-500.0,0.00016438,2]
[396437148,1764969049360,-641.73,0.00016438,2]
[396437149,1764969049370,-500.0,0.00016438,2]
[396437152,1764969049380,-500.0,0.00016438,2]
[396437154,1764969049389,-500.0,0.00016438,2]
[396437156,1764969049399,-1248.5,0.00016438,2]
[396437158,1764969049407,-1626.94,0.00016438,2]
[396437159,1764969049417,-500.0,0.00016438,2]
[396437162,1764969049427,-566.21,0.00016438,2]
[396437164,1764969049438,-1600.7,0.00016438,2]
[396437165,1764969049449,-500.0,0.00016438,2]
[396437167,1764969049458,-1407.77,0.00016438,2]
[396437169,1764969049467,-501.25,0.00016438,2]
[396437171,1764969049476,-2694.3,0.00016438,2]
[396437173,1764969049486,-500.0,0.00016438,2]
[396437176,1764969049497,-646.43,0.00016438,2]
[396437177,1764969049507,-500.0,0.00016438,2]
[396437179,1764969049517,-500.0,0.00016438,2]
[396437181,1764969049526,-544.93,0.00016438,2]
[396437183,1764969049538,-500.0,0.00016438,2]
[396437185,1764969049548,-500.0,0.00016438,2]
[396437187,1764969049558,-500.0,0.00016438,2]
[396437190,1764969049567,-500.0,0.00016438,2]
[396437191,1764969049577,-500.0,0.00016438,2]
[396437193,1764969049586,-500.0,0.00016438,2]
[396437195,1764969049595,-500.0,0.00016438,2]
[396437197,1764969049604,-912.92,0.00016438,2]
[396437199,1764969049614,-571.91,0.00016438,2]
[396437201,1764969049625,-2254.07,0.00016438,2]
[396437203,1764969049635,-2579.1,0.00016438,2]
[396437205,1764969049644,-911.71,0.00016438,2]
[396437207,1764969049654,-1458.43,0.00016438,2]
[396437209,1764969049663,-500.0,0.00016438,2]
[396437211,1764969049672,-500.0,0.00016438,2]
[396437213,1764969049681,-500.0,0.00016438,2]
[396437215,1764969049691,-500.0,0.00016438,2]
[396437217,1764969049701,-334.88481433,0.00016438,2]
[396437219,1764969049710,-3313.74,0.00016438,2]
[396437221,1764969049719,-500.0,0.00016438,2]
[396437223,1764969049728,-1137.33,0.00016438,2]
[396437225,1764969049737,-959.34,0.00016438,2]
[396437227,1764969049746,-2087.47,0.00016438,2]
[396437229,1764969049756,-500.0,0.00016438,2]
[396437232,1764969049766,-1223.95,0.00016438,2]
[396437234,1764969049775,-587.23,0.00016438,2]
[396437235,1764969049784,-500.0,0.00016438,2]
[396437238,1764969049794,-500.0,0.00016438,2]
[396437240,1764969049804,-844.76,0.00016438,2]
[396437242,1764969049814,-512.51,0.00016438,2]
[396437244,1764969049823,-735.55,0.00016438,2]
[396437245,1764969049832,-500.0,0.00016438,2]
[396437247,1764969049842,-511.57,0.00016438,2]
[396437249,1764969049851,-5202.23,0.00016438,2]
[396437251,1764969049860,-500.0,0.00016438,2]
[396437253,1764969049869,-1473.01,0.00016438,2]
[396437255,1764969049879,-500.0,0.00016438,2]
[396437257,1764969049888,-500.0,0.00016438,2]
[396437259,1764969049897,-503.87272536,0.00016438,2]
[396437261,1764969049907,-500.0,0.00016438,2]
[396437263,1764969049916,-500.0,0.00016438,2]
[396437266,1764969049927,-1807.1,0.00016438,2]
[396437267,1764969049935,-500.0,0.00016438,2]
[396437269,1764969049945,-500.0,0.00016438,2]
[396437271,1764969049955,-949.58,0.00016438,2]
[396437274,1764969049965,-4202.38,0.00016438,2]
[396437276,1764969049974,-500.0,0.00016438,2]
[396437278,1764969049983,-9332.56,0.00016438,2]
[396437279,1764969049992,-500.0,0.00016438,2]
[396437282,1764969050002,-500.0,0.00016438,2]
[396437288,1764969050270,-500.0,0.00016438,2]
[396437289,1764969050279,-500.0,0.00016438,2]
[396437290,1764969050288,-500.0,0.00016438,2]
[396437291,1764969050297,-500.0,0.00016438,2]
[396437292,1764969050307,-1512.33,0.00016438,2]
[396437293,1764969050316,-842.58,0.00016438,2]
[396437294,1764969050325,-500.0,0.00016438,2]
[396437295,1764969050335,-500.0,0.00016438,2]
[396437296,1764969050344,-500.0,0.00016438,2]
[396437297,1764969050353,-500.0,0.00016438,2]
[396437298,1764969050362,-500.0,0.00016438,2]
[396437299,1764969050371,-500.0,0.00016438,2]
[396437300,1764969050379,-992.75,0.00016438,2]
[396437301,1764969050388,-500.0,0.00016438,2]
[396437302,1764969050397,-875.54,0.00016438,2]
[396437303,1764969050406,-500.0,0.00016438,2]
[396437304,1764969050415,-605.07,0.00016438,2]
[396437305,1764969050424,-505.81,0.00016438,2]
[396437306,1764969050433,-500.0,0.00016438,2]
[396437307,1764969050442,-1527.83,0.00016438,2]
[396437308,1764969050452,-1180.27,0.00016438,2]
[396437309,1764969050460,-500.0,0.00016438,2]
[396437310,1764969050469,-500.0,0.00016438,2]
[396437311,1764969050478,-511.34,0.00016438,2]
[396437312,1764969050487,-500.0,0.00016438,2]
[396437313,1764969050496,-500.0,0.00016438,2]
[396437314,1764969050504,-500.0,0.00016438,2]
[396437315,1764969050513,-644.01,0.00016438,2]